fUSD/lending_fUSD_20250521
["ID","MTS","AMOUNT","RATE_DAILY","PERIOD"]
[361831266,1747824645006,-420.0,0.00032876,5]
[361831267,1747824645016,-420.0,0.00032876,5]
[361831268,1747824645026,-440.74110495,0.00032876,5]
[361831269,1747824645036,-469.27100543,0.00032876,5]
[361831270,1747824645045,-420.0,0.00032876,5]
[361831271,1747824645055,-420.0,0.00032876,5]
[361831272,1747824645065,-507.0261192,0.00032876,5]
[361831273,1747824645075,-492.81989876,0.00032876,5]
[361831274,1747824645086,-420.0,0.00032876,5]
[361831275,1747824645096,-420.0,0.00032876,5]
[361831276,1747824645106,-420.0,0.00032876,5]
[361831277,1747824645116,-420.0,0.00032876,5]
[361831278,1747824645126,-551.19068879,0.00032876,5]
[361831279,1747824645136,-420.0,0.00032876,5]
[361831280,1747824645147,-420.0,0.00032876,5]
[361831281,1747824645157,-1406.09,0.00032876,5]
[361831282,1747824645167,-420.0,0.00032876,5]
[361831283,1747824645177,-420.0,0.00032876,5]
[361831284,1747824645187,-239.78345832,0.00032876,5]
[361831285,1747824645197,-1450.88,0.00032876,5]
[361831286,1747824645207,-420.0,0.00032876,5]
[361831287,1747824645216,-548.18332835,0.00032876,5]
[361831288,1747824645227,-420.0,0.00032876,5]
[361831289,1747824645238,-634.12,0.00032876,5]
[361831290,1747824645248,-420.0,0.00032876,5]
[361831291,1747824645260,-974.17,0.00032876,5]
[361831292,1747824645271,-420.0,0.00032876,5]
[361831293,1747824645281,-420.0,0.00032876,5]
[361831294,1747824645290,-420.0,0.00032876,5]
[361831295,1747824645300,-420.0,0.00032876,5]
[361831296,1747824645311,-628.6,0.00032876,5]
[361831297,1747824645320,-420.0,0.00032876,5]
[361831298,1747824645330,-1157.18,0.00032876,5]
[361831299,1747824645340,-2839.57,0.00032876,5]
[361831300,1747824645350,-420.0,0.00032876,5]
[361831301,1747824645360,-420.0,0.00032876,5]
[361831302,1747824645370,-2887.33,0.00032876,5]
[361831303,1747824645380,-1192.87,0.00032876,5]
[361831304,1747824645390,-474.50619459,0.00032876,5]
[361831305,1747824645400,-420.0,0.00032876,5]
[361831306,1747824645409,-420.0,0.00032876,5]
[361831307,1747824645420,-420.0,0.00032876,5]
[361831308,1747824645429,-420.0,0.00032876,5]
[361831309,1747824645439,-334.10617844,0.00032876,5]
[361831310,1747824645449,-420.0,0.00032876,5]
[361831311,1747824645459,-300.0,0.00032876,5]
[361831312,1747824645468,-420.0,0.00032876,5]
[361831313,1747824645478,-420.0,0.00032876,5]
[361831314,1747824645488,-420.0,0.00032876,5]
[361831315,1747824645498,-420.0,0.00032876,5]
[361831316,1747824645507,-948.31,0.00032876,5]
[361831317,1747824645517,-420.0,0.00032876,5]
[361831318,1747824645527,-420.0,0.00032876,5]
[361831319,1747824645537,-451.92,0.00032876,5]
[361831320,1747824645548,-420.0,0.00032876,5]
[361831321,1747824645557,-551.05,0.00032876,5]
[361831322,1747824645567,-420.0,0.00032876,5]
[361831323,1747824645577,-420.0,0.00032876,5]
[361831324,1747824645587,-420.0,0.00032876,5]
[361831325,1747824645597,-591.01,0.00032876,5]
[361831326,1747824645607,-320.0,0.00032876,5]
[361831327,1747824645617,-420.0,0.00032876,5]
[361831328,1747824645626,-420.0,0.00032876,5]
[361831329,1747824645635,-420.0,0.00032876,5]
[361831330,1747824645645,-490.57,0.00032876,5]
[361831331,1747824645655,-850.81,0.00032876,5]
[361831332,1747824645667,-420.0,0.00032876,5]
[361831333,1747824645677,-2693.84,0.00032876,5]
[361831334,1747824645687,-420.0,0.00032876,5]
[361831335,1747824645697,-420.0,0.00032876,5]
[361831336,1747824645708,-420.0,0.00032876,5]
[361831337,1747824645719,-420.0,0.00032876,5]
[361831338,1747824645728,-713.92,0.00032876,5]
[361831339,1747824645738,-420.0,0.00032876,5]
[361831340,1747824645747,-420.0,0.00032876,5]
[361831341,1747824645758,-420.0,0.00032876,5]
[361831342,1747824645768,-3459.46,0.00032876,5]
[361831343,1747824645778,-2692.24,0.00032876,5]
[361831344,1747824645791,-420.0,0.00032876,5]
[361831346,1747824645802,-481.98218953,0.00032876,5]
[361831347,1747824645813,-420.0,0.00032876,5]
[361831348,1747824645823,-420.0,0.00032876,5]
[361831350,1747824645833,-420.0,0.00032876,5]
[361831351,1747824645843,-1460.86,0.00032876,5]
[361831353,1747824645853,-420.0,0.00032876,5]
[361831354,1747824645862,-420.0,0.00032876,5]
[361831355,1747824645871,-534.09,0.00032876,5]
[361831356,1747824645881,-420.0,0.00032876,5]
[361831357,1747824645891,-420.0,0.00032876,5]
[361831358,1747824645901,-488.98,0.00032876,5]
[361831359,1747824645911,-420.0,0.00032876,5]
[361831360,1747824645921,-420.0,0.00032876,5]
[361831361,1747824645931,-420.0,0.00032876,5]
[361831362,1747824645941,-3092.9,0.00032876,5]
[361831363,1747824645951,-1629.67,0.00032876,5]
[361831364,1747824645961,-426.43,0.00032876,5]
[361831365,1747824645971,-420.0,0.00032876,5]
[361831366,1747824645981,-420.0,0.00032876,5]
[361831367,1747824645991,-420.0,0.00032876,5]
[361831368,1747824646001,-1095.04,0.00032876,5]
[361831369,1747824646011,-1095.04,0.00032876,5]
[361831370,1747824646021,-1095.04,0.00032876,5]
[361831371,1747824646031,-1095.04,0.00032876,5]
[361831372,1747824646042,-1095.04,0.00032876,5]
[361831373,1747824646052,-1095.04,0.00032876,5]
[361831374,1747824646062,-420.0,0.00032876,5]
[361831375,1747824646072,-1095.04,0.00032876,5]
[361831376,1747824646082,-1095.04,0.00032876,5]
[361831377,1747824646093,-1095.04,0.00032876,5]
[361831378,1747824646104,-1095.04,0.00032876,5]
[361831379,1747824646114,-1095.04,0.00032876,5]
[361831380,1747824646124,-1095.04,0.00032876,5]
[361831381,1747824646134,-1095.04,0.00032876,5]
[361831382,1747824646145,-420.0,0.00032876,5]
[361831383,1747824646155,-481.9,0.00032876,5]
[361831384,1747824646165,-1186.93,0.00032876,5]
[361831385,1747824646175,-420.0,0.00032876,5]
[361831386,1747824646185,-420.0,0.00032876,5]
[361831387,1747824646195,-420.0,0.00032876,5]
[361831388,1747824646204,-524.7,0.00032876,5]
[361831389,1747824646214,-991.78,0.00032876,5]
[361831390,1747824646225,-420.0,0.00032876,5]
[361831391,1747824646235,-1976.72,0.00032876,5]
[361831392,1747824646245,-420.0,0.00032876,5]
[361831393,1747824646255,-485.97,0.00032876,5]
[361831394,1747824646265,-1846.75,0.00032876,5]
[361831395,1747824646274,-428.81,0.00032876,5]
[361831396,1747824646284,-420.0,0.00032876,5]
[361831397,1747824646295,-515.61,0.00032876,5]
[361831398,1747824646305,-903.74,0.00032876,5]
[361831401,1747824646315,-420.0,0.00032876,5]
[361831404,1747824646324,-420.0,0.00032876,5]
[361831406,1747824646335,-420.0,0.00032876,5]
[361831409,1747824646347,-520.09,0.00032876,5]
[361831411,1747824646356,-420.0,0.00032876,5]
[361831413,1747824646366,-420.0,0.00032876,5]
[361831414,1747824646375,-420.0,0.00032876,5]
[361831415,1747824646386,-2011.37,0.00032876,5]
[361831416,1747824646397,-420.0,0.00032876,5]
[361831417,1747824646407,-3682.55,0.00032876,5]
[361831418,1747824646417,-420.0,0.00032876,5]
[361831420,1747824646427,-420.0,0.00032876,5]
[361831421,1747824646436,-618.8,0.00032876,5]
[361831422,1747824646446,-1321.62,0.00032876,5]
[361831423,1747824646456,-431.2,0.00032876,5]
[361831424,1747824646466,-660.23,0.00032876,5]
[361831426,1747824646476,-420.0,0.00032876,5]
[361831427,1747824646486,-2703.58,0.00032876,5]
[361831428,1747824646495,-420.0,0.00032876,5]
[361831429,1747824646505,-793.52,0.00032876,5]
[361831430,1747824646516,-975.01,0.00032876,5]
[361831431,1747824646527,-420.0,0.00032876,5]
[361831432,1747824646540,-1879.49,0.00032876,5]
[361831433,1747824646551,-6416.86,0.00032876,5]
[361831434,1747824646561,-420.0,0.00032876,5]
[361831435,1747824646571,-420.0,0.00032876,5]
[361831436,1747824646581,-420.0,0.00032876,5]
[361831437,1747824646590,-420.0,0.00032876,5]
[361831438,1747824646600,-420.0,0.00032876,5]
[361831439,1747824646610,-420.0,0.00032876,5]
[361831440,1747824646620,-698.78,0.00032876,5]
[361831441,1747824646629,-917.85,0.00032876,5]
[361831442,1747824646638,-420.0,0.00032876,5]
[361831443,1747824646648,-535.58433858,0.00032876,5]
[361831444,1747824646659,-420.0,0.00032876,5]
[361831445,1747824646669,-420.0,0.00032876,5]
[361831446,1747824646679,-420.0,0.00032876,5]
[361831447,1747824646689,-483.11,0.00032876,5]
[361831448,1747824646699,-420.0,0.00032876,5]
[361831449,1747824646711,-420.0,0.00032876,5]
[361831450,1747824646721,-769.05,0.00032876,5]
[361831451,1747824646734,-420.0,0.00032876,5]
[361831452,1747824646743,-549.7,0.00032876,5]
[361831453,1747824646754,-1747.73,0.00032876,5]
[361831454,1747824646763,-420.0,0.00032876,5]
[361831455,1747824646773,-420.0,0.00032876,5]
[361831456,1747824646783,-562.97,0.00032876,5]
[361831457,1747824646793,-420.0,0.00032876,5]
[361831458,1747824646803,-420.0,0.00032876,5]
[361831459,1747824646812,-579.71,0.00032876,5]
[361831460,1747824646821,-420.0,0.00032876,5]
[361831461,1747824646831,-420.0,0.00032876,5]
[361831462,1747824646842,-769.17,0.00032876,5]
[361831463,1747824646852,-478.45,0.00032876,5]
[361831464,1747824646861,-1106.95,0.00032876,5]
[361831465,1747824646870,-420.0,0.00032876,5]
[361831466,1747824646880,-420.0,0.00032876,5]
[361831467,1747824646889,-420.0,0.00032876,5]
[361831468,1747824646899,-420.0,0.00032876,5]
[361831469,1747824646908,-420.0,0.00032876,5]
[361831470,1747824646917,-420.0,0.00032876,5]
[361831471,1747824646927,-420.0,0.00032876,5]
[361831472,1747824646938,-420.0,0.00032876,5]
[361831473,1747824646948,-420.0,0.00032876,5]
[361831474,1747824646958,-420.0,0.00032876,5]
[361831475,1747824646968,-420.0,0.00032876,5]
[361831476,1747824646978,-920.77,0.00032876,5]
[361831477,1747824646987,-420.0,0.00032876,5]
[361831478,1747824646997,-529.99,0.00032876,5]
[361831479,1747824647007,-506.07,0.00032876,5]
[361831480,1747824647017,-420.0,0.00032876,5]
[361831481,1747824647027,-420.0,0.00032876,5]
[361831482,1747824647037,-420.0,0.00032876,5]
[361831483,1747824647046,-340.0,0.00032876,5]
[361831484,1747824647056,-424.5,0.00032876,5]
[361831485,1747824647066,-420.0,0.00032876,5]
[361831486,1747824647076,-455.55,0.00032876,5]
[361831487,1747824647086,-420.0,0.00032876,5]
[361831488,1747824647096,-420.0,0.00032876,5]
[361831489,1747824647106,-526.14,0.00032876,5]
[361831490,1747824647116,-420.0,0.00032876,5]
[361831491,1747824647126,-420.0,0.00032876,5]
[361831492,1747824647135,-1053.72,0.00032876,5]
[361831493,1747824647145,-420.0,0.00032876,5]
[361831494,1747824647156,-420.0,0.00032876,5]
[361831495,1747824647166,-420.0,0.00032876,5]
[361831496,1747824647177,-420.0,0.00032876,5]
[361831497,1747824647187,-420.0,0.00032876,5]
[361831498,1747824647197,-469.18,0.00032876,5]
[361831499,1747824647207,-420.0,0.00032876,5]
[361831500,1747824647219,-3176.07,0.00032876,5]
[361831501,1747824647228,-420.0,0.00032876,5]
[361831502,1747824647238,-1326.11,0.00032876,5]
[361831503,1747824647248,-544.58516293,0.00032876,5]
[361831504,1747824647258,-420.0,0.00032876,5]
[361831505,1747824647268,-420.0,0.00032876,5]
[361831506,1747824647278,-420.0,0.00032876,5]
[361831507,1747824647288,-992.23,0.00032876,5]
[361831508,1747824647298,-420.0,0.00032876,5]
[361831509,1747824647308,-420.0,0.00032876,5]
[361831510,1747824647319,-1015.39,0.00032876,5]
[361831511,1747824647329,-3790.48,0.00032876,5]
[361831512,1747824647339,-483.85,0.00032876,5]
[361831513,1747824647349,-420.0,0.00032876,5]
[361831514,1747824647361,-420.0,0.00032876,5]
[361831515,1747824647371,-420.0,0.00032876,5]
[361831516,1747824647381,-420.0,0.00032876,5]
[361831517,1747824647477,-420.0,0.00032876,5]
[361831518,1747824647489,-420.0,0.00032876,5]
[361831519,1747824647500,-420.0,0.00032876,5]
[361831520,1747824647511,-517.49,0.00032876,5]
[361831521,1747824647521,-420.0,0.00032876,5]
[361831522,1747824647531,-420.0,0.00032876,5]
[361831523,1747824647540,-420.0,0.00032876,5]
[361831524,1747824647550,-420.0,0.00032876,120]
[361831525,1747824647560,-619.72,0.00032876,5]
[361831526,1747824647569,-420.0,0.00032876,5]
[361831527,1747824647579,-420.0,0.00032876,5]
[361831528,1747824647588,-420.0,0.00032876,5]
[361831529,1747824647599,-420.0,0.00032876,5]
[361831530,1747824647610,-277.40630344,0.00032876,5]
[361831531,1747824647620,-324.53404245,0.00032876,5]
[361831532,1747824647630,-420.0,0.00032876,5]
[361831533,1747824647640,-420.0,0.00032876,5]
[361831534,1747824647650,-420.0,0.00032876,5]
[361831535,1747824647660,-420.0,0.00032876,5]
[361831536,1747824647669,-420.0,0.00032876,5]
[361831537,1747824647679,-420.0,0.00032876,5]
[361831538,1747824647689,-420.0,0.00032876,5]
[361831539,1747824647699,-420.0,0.00032876,5]
[361831540,1747824647712,-420.0,0.00032876,5]
[361831541,1747824647722,-420.0,0.00032876,5]
[361831542,1747824647731,-420.0,0.00032876,5]
[361831543,1747824647741,-518.94264229,0.00032876,5]
[361831544,1747824647751,-420.0,0.00032876,5]
[361831545,1747824647761,-491.47,0.00032876,5]
[361831546,1747824647770,-549.0922809,0.00032876,5]
[361831547,1747824647782,-420.0,0.00032876,5]
[361831548,1747824647791,-420.0,0.00032876,5]
[361831549,1747824647801,-420.0,0.00032876,5]
[361831550,1747824647811,-420.0,0.00032876,5]
[361831551,1747824647820,-420.0,0.00032876,5]
[361831552,1747824647830,-420.0,0.00032876,5]
[361831553,1747824647839,-420.0,0.00032876,5]
[361831554,1747824647849,-420.0,0.00032876,5]
[361831555,1747824647859,-420.0,0.00032876,5]
[361831556,1747824647868,-818.51,0.00032876,5]
[361831557,1747824647878,-420.0,0.00032876,5]
[361831558,1747824647887,-420.0,0.00032876,5]
[361831559,1747824647897,-1211.13,0.00032876,5]
[361831560,1747824647906,-420.0,0.00032876,5]
[361831561,1747824647915,-444.87,0.00032876,5]
[361831562,1747824647925,-420.0,0.00032876,5]
[361831563,1747824647934,-2109.32,0.00032876,5]
[361831564,1747824647944,-870.86,0.00032876,5]
[361831565,1747824647953,-420.0,0.00032876,5]
[361831566,1747824647963,-420.0,0.00032876,5]
[361831567,1747824647973,-420.0,0.00032876,5]
[361831568,1747824647983,-420.0,0.00032876,5]
[361831569,1747824647992,-420.0,0.00032876,5]
[361831570,1747824648001,-420.0,0.00032876,5]
[361831571,1747824648011,-420.0,0.00032876,5]
[361831572,1747824648021,-164.57366405,0.00032876,5]
[361831573,1747824648030,-420.0,0.00032876,5]
[361831574,1747824648040,-420.0,0.00032876,5]
[361831575,1747824648050,-592.16,0.00032876,5]
[361831576,1747824648060,-420.0,0.00032876,5]
[361831577,1747824648070,-420.0,0.00032876,5]
[361831578,1747824648079,-420.0,0.00032876,5]
[361831579,1747824648089,-789.23,0.00032876,5]
[361831580,1747824648099,-983.88,0.00032876,5]
[361831581,1747824648110,-327.4567086,0.00032876,5]
[361831582,1747824648119,-420.0,0.00032876,5]
[361831583,1747824648130,-420.0,0.00032876,5]
[361831584,1747824648140,-838.48,0.00032876,5]
[361831585,1747824648150,-420.0,0.00032876,5]
[361831586,1747824648161,-420.0,0.00032876,5]
[361831587,1747824648172,-420.0,0.00032876,5]
[361831588,1747824648187,-420.0,0.00032876,5]
[361831589,1747824648197,-420.0,0.00032876,5]
[361831590,1747824648207,-613.23,0.00032876,5]
[361831591,1747824648218,-874.73,0.00032876,5]
[361831592,1747824648227,-420.0,0.00032876,5]
[361831593,1747824648237,-420.0,0.00032876,5]
[361831594,1747824648247,-420.0,0.00032876,5]
[361831595,1747824648257,-420.0,0.00032876,5]
[361831596,1747824648267,-420.0,0.00032876,5]
[361831597,1747824648276,-420.0,0.00032876,5]
[361831598,1747824648286,-420.0,0.00032876,5]
[361831599,1747824648296,-420.0,0.00032876,5]
[361831600,1747824648312,-508.05158312,0.00032876,5]
[361831601,1747824648322,-420.0,0.00032876,5]
[361831602,1747824648332,-420.0,0.00032876,5]
[361831603,1747824648341,-1318.27,0.00032876,5]
[361831604,1747824648351,-420.0,0.00032876,5]
[361831605,1747824648361,-420.0,0.00032876,5]
[361831606,1747824648371,-420.0,0.00032876,5]
[361831607,1747824648381,-420.0,0.00032876,5]
[361831608,1747824648391,-420.0,0.00032876,5]
[361831609,1747824648401,-420.0,0.00032876,5]
[361831610,1747824648411,-476.67,0.00032876,5]
[361831611,1747824648421,-625.68,0.00032876,5]
[361831612,1747824648431,-420.0,0.00032876,5]
[361831613,1747824648440,-420.0,0.00032876,5]
[361831614,1747824648450,-420.0,0.00032876,5]
[361831615,1747824648460,-420.0,0.00032876,5]
[361831616,1747824648470,-420.0,0.00032876,5]
[361831617,1747824648480,-420.0,0.00032876,5]
[361831618,1747824648490,-420.0,0.00032876,5]
[361831619,1747824648500,-420.0,0.00032876,5]
[361831620,1747824648509,-161.10829957,0.00032876,5]
[361831621,1747824648519,-420.0,0.00032876,5]
[361831622,1747824648529,-1271.14,0.00032876,5]
[361831623,1747824648540,-420.0,0.00032876,5]
[361831624,1747824648550,-1969.23,0.00032876,5]
[361831625,1747824648560,-420.0,0.00032876,5]
[361831626,1747824648569,-420.0,0.00032876,5]
[361831627,1747824648579,-781.88,0.00032876,5]
[361831628,1747824648589,-420.0,0.00032876,5]
[361831629,1747824648599,-420.0,0.00032876,5]
[361831630,1747824648609,-420.0,0.00032876,5]
[361831631,1747824648620,-300.0,0.00032876,5]
[361831632,1747824648630,-1764.76,0.00032876,5]
[361831633,1747824648639,-420.0,0.00032876,5]
[361831634,1747824648649,-420.0,0.00032876,5]
[361831635,1747824648659,-420.0,0.00032876,5]
[361831636,1747824648669,-420.0,0.00032876,5]
[361831637,1747824648679,-5185.75,0.00032876,5]
[361831638,1747824648689,-420.0,0.00032876,5]
[361831639,1747824648699,-420.0,0.00032876,5]
[361831640,1747824648713,-420.0,0.00032876,5]
[361831641,1747824648723,-420.0,0.00032876,5]
[361831642,1747824648734,-250.0,0.00032876,5]
[361831643,1747824648743,-420.0,0.00032876,5]
[361831644,1747824648761,-542.88,0.00032876,5]
[361831645,1747824648771,-420.0,0.00032876,5]
[361831646,1747824648782,-420.0,0.00032876,5]
[361831647,1747824648793,-2153.31,0.00032876,5]
[361831648,1747824648806,-420.0,0.00032876,5]
[361831649,1747824648816,-210.40691214,0.00032876,5]
[361831650,1747824648827,-420.0,0.00032876,5]
[361831651,1747824648837,-1858.15,0.00032876,5]
[361831652,1747824648847,-859.63,0.00032876,5]
[361831653,1747824648859,-420.0,0.00032876,5]
[361831654,1747824648870,-420.0,0.00032876,5]
[361831655,1747824648881,-420.0,0.00032876,5]
[361831656,1747824648892,-480.01380857,0.00032876,5]
[361831657,1747824648902,-722.31,0.00032876,5]
[361831658,1747824648913,-420.0,0.00032876,5]
[361831659,1747824648924,-420.0,0.00032876,5]
[361831660,1747824648934,-420.0,0.00032876,5]
[361831661,1747824648944,-420.0,0.00032876,5]
[361831662,1747824648954,-420.0,0.00032876,5]
[361831663,1747824648964,-420.0,0.00032876,5]
[361831664,1747824648975,-420.0,0.00032876,5]
[361831665,1747824648985,-420.0,0.00032876,5]
[361831666,1747824648995,-560.97,0.00032876,5]
[361831667,1747824649006,-420.0,0.00032876,5]
[361831668,1747824649016,-2562.09,0.00032876,5]
[361831669,1747824649026,-420.0,0.00032876,5]
[361831670,1747824649037,-577.19,0.00032876,5]
[361831671,1747824649047,-420.0,0.00032876,5]
[361831672,1747824649058,-420.0,0.00032876,5]
[361831673,1747824649068,-420.0,0.00032876,5]
[361831674,1747824649079,-420.0,0.00032876,5]
[361831675,1747824649090,-420.0,0.00032876,5]
[361831676,1747824649100,-420.0,0.00032876,5]
[361831677,1747824649112,-420.0,0.00032876,5]
[361831678,1747824649122,-565.48585421,0.00032876,5]
[361831679,1747824649133,-500.98,0.00032876,5]
[361831680,1747824649144,-420.0,0.00032876,5]
[361831681,1747824649154,-420.0,0.00032876,5]
[361831682,1747824649164,-420.0,0.00032876,5]
[361831683,1747824649175,-420.0,0.00032876,5]
[361831684,1747824649185,-420.0,0.00032876,5]
[361831685,1747824649201,-455.72,0.00032876,5]
[361831686,1747824649211,-420.0,0.00032876,5]
[361831687,1747824649222,-938.65,0.00032876,5]
[361831688,1747824649232,-420.0,0.00032876,5]
[361831689,1747824649242,-595.09,0.00032876,5]
[361831690,1747824649253,-1038.88,0.00032876,5]
[361831691,1747824649263,-420.0,0.00032876,5]
[361831692,1747824649274,-420.0,0.00032876,5]
[361831693,1747824649284,-831.79,0.00032876,5]
[361831694,1747824649295,-1275.26,0.00032876,5]
[361831695,1747824649305,-703.33,0.00032876,5]
[361831696,1747824649315,-420.0,0.00032876,5]
[361831697,1747824649325,-314.95710586,0.00032876,5]
[361831698,1747824649336,-532.17,0.00032876,5]
[361831699,1747824649347,-15267.82,0.00032876,5]
[361831700,1747824649359,-420.0,0.00032876,5]
[361831701,1747824649369,-1265.32,0.00032876,5]
[361831702,1747824649380,-4066.1,0.00032876,5]
[361831703,1747824649391,-420.0,0.00032876,5]
[361831704,1747824649401,-420.0,0.00032876,5]
[361831705,1747824649411,-420.0,0.00032876,5]
[361831706,1747824649422,-420.0,0.00032876,5]
[361831707,1747824649433,-14759.23,0.00032876,5]
[361831708,1747824649443,-420.0,0.00032876,5]
[361831709,1747824649454,-547.56,0.00032876,5]
[361831710,1747824649465,-420.0,0.00032876,5]
[361831711,1747824649475,-884.57,0.00032876,5]
[361831712,1747824649486,-1000.0,0.00032876,5]
[361831713,1747824649497,-420.0,0.00032876,5]
[361831714,1747824649508,-420.0,0.00032876,5]
[361831715,1747824649519,-420.0,0.00032876,5]
[361831716,1747824649529,-473.82863857,0.00032876,5]
[361831717,1747824649540,-420.0,0.00032876,5]
[361831718,1747824649549,-552.34,0.00032876,5]
[361831719,1747824649559,-420.0,0.00032876,5]
[361831720,1747824649569,-8664.11,0.00032876,5]
[361831721,1747824649789,-462.03,0.00032876,5]
[361831722,1747824649799,-420.0,0.00032876,5]
[361831723,1747824649809,-609.59,0.00032876,5]
[361831724,1747824649819,-420.0,0.00032876,5]
[361831725,1747824649829,-1770.94,0.00032876,5]
[361831726,1747824649839,-420.0,0.00032876,5]
[361831727,1747824649848,-420.0,0.00032876,5]
[361831728,1747824649858,-420.0,0.00032876,5]
[361831729,1747824649868,-397.53405456,0.00032876,5]
[361831730,1747824649878,-420.0,0.00032876,5]
[361831731,1747824649888,-7238.95,0.00032876,5]
[361831732,1747824649898,-420.0,0.00032876,5]
[361831733,1747824649910,-464.77,0.00032876,5]
[361831734,1747824649919,-420.0,0.00032876,5]
[361831735,1747824649929,-420.0,0.00032876,5]
[361831736,1747824649939,-420.0,0.00032876,5]
[361831737,1747824649950,-439.52,0.00032876,5]
[361831738,1747824649960,-420.0,0.00032876,5]
[361831739,1747824649970,-420.0,0.00032876,5]
[361831740,1747824649980,-400.0,0.00032876,5]
[361831741,1747824649990,-4607.42,0.00032876,5]
[361831742,1747824650000,-420.0,0.00032876,5]
[361831743,1747824650011,-16075.9,0.00032876,5]
[361831744,1747824650022,-420.0,0.00032876,5]
[361831745,1747824650031,-420.0,0.00032876,5]
[361831746,1747824650041,-420.0,0.00032876,5]
[361831747,1747824650052,-420.0,0.00032876,5]
[361831748,1747824650062,-1239.06,0.00032876,5]
[361831749,1747824650071,-662.28,0.00032876,5]
[361831750,1747824650081,-1284.15,0.00032876,5]
[361831751,1747824650090,-420.0,0.00032876,5]
[361831752,1747824650100,-420.88967559,0.00032876,5]
[361831753,1747824650111,-420.0,0.00032876,5]
[361831754,1747824650121,-420.0,0.00032876,5]
[361831755,1747824650132,-420.0,0.00032876,5]
[361831756,1747824650142,-31196.36,0.00032876,5]
[361831757,1747824650152,-420.0,0.00032876,5]
[361831758,1747824650161,-420.0,0.00032876,5]
[361831759,1747824650171,-4752.63,0.00032876,5]
[361831760,1747824650182,-420.0,0.00032876,5]
[361831761,1747824650191,-420.0,0.00032876,5]
[361831762,1747824650201,-3288.76,0.00032876,5]
[361831763,1747824650211,-486.83383717,0.00032876,5]
[361831764,1747824650222,-420.0,0.00032876,5]
[361831765,1747824650231,-420.0,0.00032876,5]
[361831766,1747824650241,-420.0,0.00032876,5]
[361831767,1747824650252,-1760.94,0.00032876,5]
[361831768,1747824650262,-420.0,0.00032876,5]
[361831769,1747824650272,-420.0,0.00032876,5]
[361831770,1747824650282,-420.0,0.00032876,5]
[361831771,1747824650292,-420.0,0.00032876,5]
[361831772,1747824650302,-420.0,0.00032876,5]
[361831773,1747824650312,-477.76954897,0.00032876,5]
[361831774,1747824650322,-420.0,0.00032876,5]
[361831775,1747824650331,-420.0,0.00032876,5]
[361831776,1747824650340,-2274.52344468,0.00032876,5]
[361831777,1747824650350,-420.0,0.00032876,5]
[361831778,1747824650360,-400.0,0.00032876,5]
[361831779,1747824650369,-7428.76,0.00032876,5]